[Event "Early-Titled-Tuesday-Blitz-June-18-2024"]
[Site "Chess.com"]
[Date "2024.06.18"]
[Round "6"]
[White "kingnb"]
[Black "axvesik"]
[Result "1-0"]
[WhiteElo "2694"]
[BlackElo "2553"]
[TimeControl "180+1"]
[EndTime "9:09:28 PDT"]
[Termination "kingnb won on time"]

1. d4 {[%clk 0:03:00.9]} 1... Nf6 {[%clk 0:02:59.6]} 2. Nf3 {[%clk 0:03:00.9]}
2... e6 {[%clk 0:02:58.4]} 3. Nbd2 {[%clk 0:03:00.5]} 3... d5 {[%clk 0:02:56.9]}
4. e3 {[%clk 0:03:00.6]} 4... c5 {[%clk 0:02:56.8]} 5. c3 {[%clk 0:03:00.7]}
5... Nc6 {[%clk 0:02:56.3]} 6. Bd3 {[%clk 0:03:01.3]} 6... Bd6 {[%clk
0:02:56.3]} 7. O-O {[%clk 0:03:01.6]} 7... O-O {[%clk 0:02:56.2]} 8. Qe2 {[%clk
0:03:01.6]} 8... e5 {[%clk 0:02:55.8]} 9. dxc5 {[%clk 0:03:01.7]} 9... Bxc5
{[%clk 0:02:54.8]} 10. e4 {[%clk 0:03:02.6]} 10... Bg4 {[%clk 0:02:49.3]} 11.
exd5 {[%clk 0:03:02]} 11... Qxd5 {[%clk 0:02:41.7]} 12. Ne4 {[%clk 0:03:02]}
12... Be7 {[%clk 0:02:02.3]} 13. h3 {[%clk 0:02:32.8]} 13... Bh5 {[%clk
0:01:56]} 14. Nxf6+ {[%clk 0:02:32.1]} 14... Bxf6 {[%clk 0:01:54.5]} 15. Be4
{[%clk 0:02:33]} 15... Qe6 {[%clk 0:01:47]} 16. Rd1 {[%clk 0:02:33]} 16... Rfd8
{[%clk 0:01:43.3]} 17. Be3 {[%clk 0:02:33.5]} 17... Be7 {[%clk 0:01:36.8]} 18.
Qb5 {[%clk 0:02:32.8]} 18... Rd7 {[%clk 0:01:21]} 19. Rxd7 {[%clk 0:02:21.1]}
19... Qxd7 {[%clk 0:01:20.1]} 20. Nxe5 {[%clk 0:02:19.9]} 20... Nxe5 {[%clk
0:01:14.4]} 21. Qxe5 {[%clk 0:02:20.8]} 21... Bg6 {[%clk 0:01:12.9]} 22. Bf3
{[%clk 0:02:20.4]} 22... Bf6 {[%clk 0:01:00.1]} 23. Qf4 {[%clk 0:01:40.8]} 23...
Qb5 {[%clk 0:00:50.3]} 24. b3 {[%clk 0:01:36.4]} 24... Bxc3 {[%clk 0:00:43.9]}
25. Rc1 {[%clk 0:01:35.9]} 25... Be5 {[%clk 0:00:41.6]} 26. Qc4 {[%clk
0:01:35.9]} 26... Qd7 {[%clk 0:00:32.2]} 27. Qd5 {[%clk 0:01:27.5]} 27... Qxd5
{[%clk 0:00:22.2]} 28. Bxd5 {[%clk 0:01:28.4]} 28... h6 {[%clk 0:00:21.9]} 29.
Bxb7 {[%clk 0:01:24.5]} 29... Rb8 {[%clk 0:00:22.2]} 30. Ba6 {[%clk 0:01:24.3]}
30... Rd8 {[%clk 0:00:19.9]} 31. Bxa7 {[%clk 0:01:13.1]} 31... Rd2 {[%clk
0:00:19.8]} 32. a4 {[%clk 0:01:13]} 32... Rb2 {[%clk 0:00:19.8]} 33. Bc4 {[%clk
0:01:12.4]} 33... Bc2 {[%clk 0:00:19.6]} 34. Re1 {[%clk 0:01:06.8]} 34... Bf6
{[%clk 0:00:16.7]} 35. Re8+ {[%clk 0:01:02.2]} 35... Kh7 {[%clk 0:00:16.7]} 36.
Re3 {[%clk 0:01:01.5]} 36... Bg5 {[%clk 0:00:14]} 37. Rc3 {[%clk 0:00:58.1]}
37... Bf5 {[%clk 0:00:11.4]} 38. Bd3 {[%clk 0:00:54.2]} 38... Bxd3 {[%clk
0:00:09]} 39. Rxd3 {[%clk 0:00:55.1]} 39... Bf6 {[%clk 0:00:08.5]} 40. g3 {[%clk
0:00:54.8]} 40... Kg6 {[%clk 0:00:06.8]} 41. a5 {[%clk 0:00:51.3]} 41... Kf5
{[%clk 0:00:05.2]} 42. Re3 {[%clk 0:00:47.9]} 42... Bg5 {[%clk 0:00:04.1]} 43.
Rc3 {[%clk 0:00:45.5]} 43... Bf6 {[%clk 0:00:04.3]} 44. Re3 {[%clk 0:00:44.8]}
44... Bg5 {[%clk 0:00:04.3]} 45. Rf3+ {[%clk 0:00:45.2]} 45... Ke6 {[%clk
0:00:04]} 46. Bb6 {[%clk 0:00:42.9]} 46... Bf6 {[%clk 0:00:02.8]} 47. a6 {[%clk
0:00:43]} 47... Ra2 {[%clk 0:00:03.1]} 48. a7 {[%clk 0:00:43.4]} 48... Kd5
{[%clk 0:00:03.7]} 49. Re3 {[%clk 0:00:41.4]} 49... Kc6 {[%clk 0:00:04.2]} 50.
Re8 {[%clk 0:00:41.6]} 50... Kb7 {[%clk 0:00:04.5]} 51. Rb8+ {[%clk 0:00:41.2]}
1-0

[Event "Early-Titled-Tuesday-Blitz-June-18-2024"]
[Site "Chess.com"]
[Date "2024.06.18"]
[Round "6"]
[White "dropstoneDP"]
[Black "FabianoCaruana"]
[Result "0-1"]
[WhiteElo "2985"]
[BlackElo "3137"]
[TimeControl "180+1"]
[EndTime "9:09:32 PDT"]
[Termination "FabianoCaruana won by resignation"]

1. e4 {[%clk 0:03:00.9]} 1... c6 {[%clk 0:03:00.3]} 2. d4 {[%clk 0:03:00]} 2...
d5 {[%clk 0:02:59.9]} 3. Nd2 {[%clk 0:03:00.2]} 3... dxe4 {[%clk 0:02:59.4]} 4.
Nxe4 {[%clk 0:03:00.9]} 4... Nf6 {[%clk 0:03:00]} 5. Qd3 {[%clk 0:02:52.6]} 5...
Na6 {[%clk 0:02:49.6]} 6. a3 {[%clk 0:02:50.4]} 6... Nc7 {[%clk 0:02:46.9]} 7.
Nf3 {[%clk 0:02:49.8]} 7... Nxe4 {[%clk 0:02:35.3]} 8. Qxe4 {[%clk 0:02:50.7]}
8... Qd5 {[%clk 0:02:34.1]} 9. Bd3 {[%clk 0:02:50]} 9... Qxe4+ {[%clk
0:02:32.7]} 10. Bxe4 {[%clk 0:02:50.9]} 10... g6 {[%clk 0:02:33.3]} 11. h4
{[%clk 0:02:43.9]} 11... Bg7 {[%clk 0:02:28.7]} 12. h5 {[%clk 0:02:43.2]} 12...
Bf5 {[%clk 0:02:29.3]} 13. Bxf5 {[%clk 0:02:26.2]} 13... gxf5 {[%clk 0:02:30.2]}
14. h6 {[%clk 0:02:27.1]} 14... Bf6 {[%clk 0:02:29.7]} 15. Rh5 {[%clk
0:02:27.1]} 15... e6 {[%clk 0:02:26]} 16. Bg5 {[%clk 0:02:27.5]} 16... Ke7
{[%clk 0:02:22.3]} 17. Ne5 {[%clk 0:02:11.9]} 17... Rhg8 {[%clk 0:02:15.9]} 18.
Bxf6+ {[%clk 0:02:03.9]} 18... Kxf6 {[%clk 0:02:16.8]} 19. g3 {[%clk 0:01:58.9]}
19... Rad8 {[%clk 0:02:14.9]} 20. O-O-O {[%clk 0:01:48.9]} 20... c5 {[%clk
0:02:14.5]} 21. c3 {[%clk 0:00:58.7]} 21... cxd4 {[%clk 0:02:13.5]} 22. cxd4
{[%clk 0:00:59.6]} 22... Nb5 {[%clk 0:02:09.3]} 23. Nf3 {[%clk 0:00:59.9]} 23...
Nd6 {[%clk 0:02:02.7]} 24. d5 {[%clk 0:00:43.8]} 24... Ne4 {[%clk 0:01:49.2]}
25. dxe6 {[%clk 0:00:40.5]} 25... fxe6 {[%clk 0:01:47.8]} 26. Rxd8 {[%clk
0:00:08.9]} 26... Rxd8 {[%clk 0:01:48.7]} 27. Rh2 {[%clk 0:00:08.1]} 27... b5
{[%clk 0:01:49.2]} 28. Kc2 {[%clk 0:00:07.8]} 28... a5 {[%clk 0:01:48.7]} 29.
Rg2 {[%clk 0:00:07.2]} 29... b4 {[%clk 0:01:27.7]} 30. axb4 {[%clk 0:00:07.2]}
30... axb4 {[%clk 0:01:28.6]} 31. g4 {[%clk 0:00:07.9]} 31... b3+ {[%clk
0:01:25.3]} 32. Kc1 {[%clk 0:00:05.7]} 32... Rc8+ {[%clk 0:01:14.4]} 33. Kd1
{[%clk 0:00:04.8]} 33... Rc2 {[%clk 0:01:09.9]} 34. g5+ {[%clk 0:00:05]} 34...
Kf7 {[%clk 0:00:34.5]} 35. g6+ {[%clk 0:00:04.8]} 35... hxg6 {[%clk 0:00:34.9]}
36. Ne5+ {[%clk 0:00:03.7]} 36... Kg8 {[%clk 0:00:35.2]} 37. Rxg6+ {[%clk
0:00:02.4]} 37... Kh7 {[%clk 0:00:35.7]} 38. Rxe6 {[%clk 0:00:01.7]} 38... Rxb2
{[%clk 0:00:31.3]} 39. Rb6 {[%clk 0:00:01.8]} 39... Nc3+ {[%clk 0:00:28.6]} 40.
Ke1 {[%clk 0:00:02.4]} 40... Re2+ {[%clk 0:00:28.7]} 41. Kf1 {[%clk 0:00:03.1]}
41... Rxe5 {[%clk 0:00:29.2]} 42. Rxb3 {[%clk 0:00:03.8]} 42... Ne4 {[%clk
0:00:28.7]} 43. Rb6 {[%clk 0:00:03.6]} 43... Rd5 {[%clk 0:00:25.2]} 44. Ke2
{[%clk 0:00:03.6]} 44... Rd2+ {[%clk 0:00:24.1]} 45. Ke3 {[%clk 0:00:04.2]}
45... Rxf2 {[%clk 0:00:24.7]} 46. Re6 {[%clk 0:00:04.1]} 46... Rf1 {[%clk
0:00:24.3]} 47. Ke2 {[%clk 0:00:04.5]} 47... Ng3+ {[%clk 0:00:24.3]} 48. Ke3
{[%clk 0:00:04.8]} 48... Re1+ {[%clk 0:00:24.1]} 0-1

[Event "Early-Titled-Tuesday-Blitz-June-18-2024"]
[Site "Chess.com"]
[Date "2024.06.18"]
[Round "6"]
[White "ozates"]
[Black "FredddieCroderg"]
[Result "1-0"]
[WhiteElo "2632"]
[BlackElo "2327"]
[TimeControl "180+1"]
[EndTime "9:09:35 PDT"]
[Termination "ozates won by resignation"]

1. e4 {[%clk 0:03:00.9]} 1... c6 {[%clk 0:02:59.6]} 2. d4 {[%clk 0:02:59.2]}
2... d5 {[%clk 0:03:00.5]} 3. exd5 {[%clk 0:03:00]} 3... cxd5 {[%clk 0:03:00.2]}
4. c4 {[%clk 0:03:00.9]} 4... Nf6 {[%clk 0:02:59.4]} 5. Nc3 {[%clk 0:03:00.8]}
5... e6 {[%clk 0:02:59.6]} 6. Nf3 {[%clk 0:02:59.7]} 6... Be7 {[%clk 0:02:59.7]}
7. a3 {[%clk 0:02:59.2]} 7... O-O {[%clk 0:02:59.6]} 8. Bd3 {[%clk 0:02:56.6]}
8... dxc4 {[%clk 0:02:55.8]} 9. Bxc4 {[%clk 0:02:57]} 9... b6 {[%clk 0:02:56.3]}
10. d5 {[%clk 0:02:52.2]} 10... exd5 {[%clk 0:02:51.3]} 11. Nxd5 {[%clk
0:02:53.1]} 11... Bb7 {[%clk 0:02:50.9]} 12. Nxe7+ {[%clk 0:02:43.8]} 12...
Qxe7+ {[%clk 0:02:50.8]} 13. Be3 {[%clk 0:02:44.4]} 13... Ng4 {[%clk 0:02:44.1]}
14. O-O {[%clk 0:02:42.1]} 14... Qc7 {[%clk 0:02:20.9]} 15. Qd4 {[%clk
0:02:14.6]} 15... Bxf3 {[%clk 0:02:05.8]} 16. Bf4 {[%clk 0:02:14.1]} 16... Rd8
{[%clk 0:01:55.5]} 17. Rfe1 {[%clk 0:01:14.5]} 17... Nc6 {[%clk 0:01:54.1]} 18.
Qxg7+ {[%clk 0:01:12.3]} 18... Kxg7 {[%clk 0:01:51.8]} 19. Bxc7 {[%clk
0:01:12.9]} 19... Rd4 {[%clk 0:01:45.9]} 20. gxf3 {[%clk 0:01:11.8]} 20... Rxc4
{[%clk 0:01:45.2]} 21. fxg4 {[%clk 0:01:11.7]} 21... Rxg4+ {[%clk 0:01:44.6]}
22. Kh1 {[%clk 0:01:09.9]} 22... Rc8 {[%clk 0:01:40.8]} 23. Bg3 {[%clk 0:01:09]}
23... Nd4 {[%clk 0:01:38.3]} 24. Be5+ {[%clk 0:01:08.8]} 24... f6 {[%clk
0:01:33.4]} 25. Bxd4 {[%clk 0:01:02.8]} 25... Rxd4 {[%clk 0:01:32.8]} 26. Re7+
{[%clk 0:01:03.5]} 26... Kg6 {[%clk 0:01:29.9]} 27. Rg1+ {[%clk 0:01:02]} 27...
Kf5 {[%clk 0:01:29.1]} 28. Rxh7 {[%clk 0:01:00.4]} 28... Rc2 {[%clk 0:01:28.1]}
29. Rh5+ {[%clk 0:00:39.8]} 29... Ke6 {[%clk 0:01:24.3]} 30. Re1+ {[%clk
0:00:39.3]} 30... Kd6 {[%clk 0:01:23.5]} 31. Rf5 {[%clk 0:00:36.1]} 31... Rxb2
{[%clk 0:01:19.3]} 32. Rxf6+ {[%clk 0:00:36.6]} 32... Kc5 {[%clk 0:01:17.7]} 33.
Kg2 {[%clk 0:00:31.2]} 33... Rd3 {[%clk 0:01:15.2]} 34. Rf3 {[%clk 0:00:29.6]}
34... Rxf3 {[%clk 0:00:39.5]} 35. Kxf3 {[%clk 0:00:29.4]} 35... a5 {[%clk
0:00:37.7]} 36. h4 {[%clk 0:00:29]} 36... b5 {[%clk 0:00:36.3]} 37. h5 {[%clk
0:00:29]} 37... Rb3+ {[%clk 0:00:34.7]} 38. Kg4 {[%clk 0:00:18.9]} 38... Rxa3
{[%clk 0:00:27.7]} 39. h6 {[%clk 0:00:12.5]} 39... Rd3 {[%clk 0:00:25]} 40. h7
{[%clk 0:00:12]} 40... Rd8 {[%clk 0:00:24.9]} 41. Kg5 {[%clk 0:00:12.3]} 41...
b4 {[%clk 0:00:23.9]} 42. f4 {[%clk 0:00:11.8]} 42... b3 {[%clk 0:00:23.6]} 43.
f5 {[%clk 0:00:12.5]} 43... a4 {[%clk 0:00:23.2]} 44. f6 {[%clk 0:00:12.3]}
44... a3 {[%clk 0:00:22.5]} 45. f7 {[%clk 0:00:10.6]} 45... b2 {[%clk
0:00:21.6]} 46. Re8 {[%clk 0:00:09.7]} 46... Rxe8 {[%clk 0:00:16.4]} 47. fxe8=Q
{[%clk 0:00:08.2]} 47... b1=Q {[%clk 0:00:16.3]} 48. Qe5+ {[%clk 0:00:06.9]}
48... Kb4 {[%clk 0:00:14.8]} 49. Qb8+ {[%clk 0:00:06.5]} 1-0

[Event "Early-Titled-Tuesday-Blitz-June-18-2024"]
[Site "Chess.com"]
[Date "2024.06.18"]
[Round "6"]
[White "ArtemDyachuk"]
[Black "banjadvorovi"]
[Result "1-0"]
[WhiteElo "2638"]
[BlackElo "2428"]
[TimeControl "180+1"]
[EndTime "9:09:36 PDT"]
[Termination "ArtemDyachuk won by resignation"]

1. e4 {[%clk 0:03:00.9]} 1... c5 {[%clk 0:02:50.7]} 2. Nf3 {[%clk 0:03:00]} 2...
Nc6 {[%clk 0:02:51]} 3. Bb5 {[%clk 0:02:57.8]} 3... g6 {[%clk 0:02:49.3]} 4. O-O
{[%clk 0:02:55.9]} 4... Bg7 {[%clk 0:02:49.2]} 5. Re1 {[%clk 0:02:56.2]} 5...
Nd4 {[%clk 0:02:44.6]} 6. Nxd4 {[%clk 0:02:53.4]} 6... cxd4 {[%clk 0:02:44.5]}
7. c3 {[%clk 0:02:52.2]} 7... a6 {[%clk 0:02:42]} 8. Bf1 {[%clk 0:02:51.2]} 8...
d6 {[%clk 0:02:40.4]} 9. cxd4 {[%clk 0:02:47.9]} 9... Bxd4 {[%clk 0:02:41.3]}
10. Nc3 {[%clk 0:02:47.2]} 10... Bg7 {[%clk 0:02:40.6]} 11. d4 {[%clk
0:02:46.8]} 11... Nf6 {[%clk 0:02:38]} 12. Qf3 {[%clk 0:02:45.4]} 12... O-O
{[%clk 0:02:36.3]} 13. h3 {[%clk 0:02:45]} 13... Bd7 {[%clk 0:02:28.1]} 14. Bf4
{[%clk 0:02:42.6]} 14... Rc8 {[%clk 0:02:23.3]} 15. e5 {[%clk 0:02:40.7]} 15...
dxe5 {[%clk 0:02:22.4]} 16. dxe5 {[%clk 0:02:41.6]} 16... Bc6 {[%clk 0:02:21.5]}
17. exf6 {[%clk 0:02:12.5]} 17... Bxf3 {[%clk 0:02:20.2]} 18. fxg7 {[%clk
0:02:12.4]} 18... Kxg7 {[%clk 0:02:20.9]} 19. gxf3 {[%clk 0:02:11.9]} 19... e6
{[%clk 0:02:15.6]} 20. Rad1 {[%clk 0:02:08.5]} 20... Qa5 {[%clk 0:02:12.9]} 21.
Be5+ {[%clk 0:02:03.1]} 21... f6 {[%clk 0:02:09.1]} 22. Bg3 {[%clk 0:01:53.3]}
22... e5 {[%clk 0:02:03.7]} 23. Rd7+ {[%clk 0:01:49.8]} 23... Rf7 {[%clk
0:02:03.7]} 24. Red1 {[%clk 0:01:50.4]} 24... Rc7 {[%clk 0:01:58.4]} 25. Rd8
{[%clk 0:01:40.9]} 25... Rf8 {[%clk 0:01:53.8]} 26. R8d6 {[%clk 0:01:35.5]}
26... Rff7 {[%clk 0:01:29.6]} 27. a3 {[%clk 0:01:08.8]} 27... Qc5 {[%clk
0:01:22.7]} 28. R1d5 {[%clk 0:01:06.1]} 28... Qa7 {[%clk 0:01:22.5]} 29. Ne4
{[%clk 0:01:00.3]} 29... Rce7 {[%clk 0:01:04.9]} 30. b4 {[%clk 0:00:29]} 30...
Qb8 {[%clk 0:00:49.5]} 31. Bc4 {[%clk 0:00:23.7]} 31... Rc7 {[%clk 0:00:42.9]}
32. Nc5 {[%clk 0:00:21.7]} 32... Kh6 {[%clk 0:00:37.4]} 33. Bf1 {[%clk
0:00:13.4]} 33... Qc8 {[%clk 0:00:30.9]} 34. f4 {[%clk 0:00:13.3]} 34... Qf5
{[%clk 0:00:09.2]} 35. fxe5 {[%clk 0:00:09.8]} 35... fxe5 {[%clk 0:00:10.1]} 36.
Rxe5 {[%clk 0:00:10.7]} 36... Qc2 {[%clk 0:00:10.3]} 37. Re4 {[%clk 0:00:07.4]}
37... Rce7 {[%clk 0:00:10.4]} 38. Rh4+ {[%clk 0:00:07.1]} 38... Kg7 {[%clk
0:00:10.7]} 39. Ne6+ {[%clk 0:00:07.7]} 39... Rxe6 {[%clk 0:00:08.1]} 40. Rxe6
{[%clk 0:00:07.5]} 40... g5 {[%clk 0:00:07.3]} 41. Rd4 {[%clk 0:00:05.2]} 41...
Qf5 {[%clk 0:00:07.5]} 42. Be5+ {[%clk 0:00:04.3]} 42... Kg8 {[%clk 0:00:05.7]}
43. Re8+ {[%clk 0:00:04.2]} 43... Rf8 {[%clk 0:00:05.8]} 44. Bc4+ {[%clk
0:00:04.6]} 1-0

[Event "Early-Titled-Tuesday-Blitz-June-18-2024"]
[Site "Chess.com"]
[Date "2024.06.18"]
[Round "6"]
[White "Prizant_academy"]
[Black "aa175"]
[Result "0-1"]
[WhiteElo "2976"]
[BlackElo "2869"]
[TimeControl "180+1"]
[EndTime "9:09:37 PDT"]
[Termination "aa175 won on time"]

1. d4 {[%clk 0:03:00.9]} 1... d5 {[%clk 0:02:56.5]} 2. c4 {[%clk 0:03:01.1]}
2... e6 {[%clk 0:02:56.2]} 3. Nf3 {[%clk 0:03:01.6]} 3... Nf6 {[%clk 0:02:56.3]}
4. e3 {[%clk 0:03:01.9]} 4... b6 {[%clk 0:02:51.6]} 5. b3 {[%clk 0:02:58.4]}
5... Bb7 {[%clk 0:02:52]} 6. Bd3 {[%clk 0:02:58.5]} 6... Bb4+ {[%clk 0:02:47.8]}
7. Nbd2 {[%clk 0:02:57.7]} 7... Ne4 {[%clk 0:02:47.2]} 8. O-O {[%clk 0:02:51.3]}
8... Nd7 {[%clk 0:02:41]} 9. Bb2 {[%clk 0:02:45.4]} 9... f5 {[%clk 0:02:33.6]}
10. Rc1 {[%clk 0:02:32.6]} 10... O-O {[%clk 0:02:28]} 11. a3 {[%clk 0:02:29.2]}
11... Bd6 {[%clk 0:02:26.8]} 12. cxd5 {[%clk 0:02:25]} 12... exd5 {[%clk
0:02:25.7]} 13. Ne5 {[%clk 0:02:25.7]} 13... c5 {[%clk 0:02:13.1]} 14. f4 {[%clk
0:02:16.4]} 14... Rc8 {[%clk 0:01:59]} 15. Ndf3 {[%clk 0:02:09.6]} 15... Ndf6
{[%clk 0:01:54.5]} 16. Qe2 {[%clk 0:02:01.3]} 16... Qe7 {[%clk 0:01:43.8]} 17.
a4 {[%clk 0:02:00.6]} 17... a5 {[%clk 0:01:29.1]} 18. Rfd1 {[%clk 0:01:53.9]}
18... Kh8 {[%clk 0:01:25.1]} 19. Ba1 {[%clk 0:01:16]} 19... Rc7 {[%clk
0:01:22.6]} 20. Ba6 {[%clk 0:01:05.5]} 20... Ba8 {[%clk 0:01:20.6]} 21. Bb2
{[%clk 0:01:03.6]} 21... Rd8 {[%clk 0:01:04.1]} 22. h3 {[%clk 0:00:52.9]} 22...
Nh5 {[%clk 0:00:59.5]} 23. Qe1 {[%clk 0:00:46.9]} 23... Ra7 {[%clk 0:00:52.6]}
24. Bd3 {[%clk 0:00:44.2]} 24... Nhg3 {[%clk 0:00:46]} 25. Ng5 {[%clk
0:00:35.7]} 25... Bxe5 {[%clk 0:00:32.3]} 26. dxe5 {[%clk 0:00:29.5]} 26... h6
{[%clk 0:00:21.8]} 27. Nxe4 {[%clk 0:00:24.7]} 27... Nxe4 {[%clk 0:00:22.5]} 28.
Bxe4 {[%clk 0:00:20.7]} 28... dxe4 {[%clk 0:00:22.7]} 29. Rxd8+ {[%clk
0:00:18.3]} 29... Qxd8 {[%clk 0:00:23.1]} 30. e6 {[%clk 0:00:17.7]} 30... Qe8
{[%clk 0:00:16.4]} 31. Rd1 {[%clk 0:00:15.1]} 31... Qxe6 {[%clk 0:00:15.9]} 32.
Qh4 {[%clk 0:00:11.7]} 32... Kh7 {[%clk 0:00:09.2]} 33. Qd8 {[%clk 0:00:12]}
33... Qxb3 {[%clk 0:00:04.2]} 34. Be5 {[%clk 0:00:04.6]} 34... Qxe3+ {[%clk
0:00:03]} 35. Kh2 {[%clk 0:00:05]} 35... Qb3 {[%clk 0:00:02]} 36. Rd6 {[%clk
0:00:03.1]} 36... Qf7 {[%clk 0:00:01.6]} 37. Qxb6 {[%clk 0:00:02.8]} 37... e3
{[%clk 0:00:02]} 38. Qxc5 {[%clk 0:00:02]} 38... Be4 {[%clk 0:00:01.9]} 39. Qxe3
{[%clk 0:00:02.1]} 39... Rd7 {[%clk 0:00:01.9]} 40. Rb6 {[%clk 0:00:01.5]} 40...
Rd3 {[%clk 0:00:01.8]} 41. Qf2 {[%clk 0:00:01.6]} 41... Qd5 {[%clk 0:00:02]} 42.
Ra6 {[%clk 0:00:01.4]} 42... Rd2 {[%clk 0:00:02.4]} 43. Qe3 {[%clk 0:00:01.4]}
43... Rxg2+ {[%clk 0:00:02.7]} 44. Kh1 {[%clk 0:00:01.7]} 44... Qd1+ {[%clk
0:00:03]} 0-1

[Event "Early-Titled-Tuesday-Blitz-June-18-2024"]
[Site "Chess.com"]
[Date "2024.06.18"]
[Round "6"]
[White "Chessmatenokk17"]
[Black "rasmussvane"]
[Result "0-1"]
[WhiteElo "2793"]
[BlackElo "2975"]
[TimeControl "180+1"]
[EndTime "9:09:39 PDT"]
[Termination "rasmussvane won by checkmate"]

1. e4 {[%clk 0:03:00.9]} 1... c6 {[%clk 0:02:58.7]} 2. d4 {[%clk 0:03:00.8]}
2... d5 {[%clk 0:02:59.6]} 3. e5 {[%clk 0:03:01.3]} 3... Bf5 {[%clk 0:02:59.6]}
4. h4 {[%clk 0:03:01.9]} 4... h5 {[%clk 0:02:59.2]} 5. Bd3 {[%clk 0:03:02.2]}
5... Bxd3 {[%clk 0:02:59.1]} 6. Qxd3 {[%clk 0:03:03.1]} 6... Qa5+ {[%clk
0:02:59.3]} 7. Nd2 {[%clk 0:03:03.1]} 7... e6 {[%clk 0:02:58]} 8. Nf3 {[%clk
0:03:02.8]} 8... Nh6 {[%clk 0:02:57]} 9. O-O {[%clk 0:03:02.2]} 9... Nf5 {[%clk
0:02:57.1]} 10. a4 {[%clk 0:03:02.8]} 10... Be7 {[%clk 0:02:52.2]} 11. Nb3
{[%clk 0:03:00]} 11... Qa6 {[%clk 0:02:49.2]} 12. Qd1 {[%clk 0:02:59.6]} 12...
Nd7 {[%clk 0:02:37.5]} 13. g3 {[%clk 0:02:55.8]} 13... c5 {[%clk 0:02:31.8]} 14.
c3 {[%clk 0:02:52.2]} 14... Rc8 {[%clk 0:02:27.6]} 15. Kg2 {[%clk 0:02:51.9]}
15... Qb6 {[%clk 0:02:05.4]} 16. Bg5 {[%clk 0:02:39.5]} 16... Bxg5 {[%clk
0:01:55.1]} 17. hxg5 {[%clk 0:02:38.7]} 17... c4 {[%clk 0:01:55.4]} 18. Nc1
{[%clk 0:02:28.3]} 18... Qxb2 {[%clk 0:01:50.8]} 19. Ne2 {[%clk 0:02:25.1]}
19... Qb6 {[%clk 0:01:33.4]} 20. Rh1 {[%clk 0:02:23.9]} 20... g6 {[%clk
0:01:12.8]} 21. Nf4 {[%clk 0:02:17.5]} 21... Kd8 {[%clk 0:01:08.7]} 22. g4
{[%clk 0:01:21.3]} 22... Ng7 {[%clk 0:01:08.5]} 23. gxh5 {[%clk 0:01:21.6]}
23... gxh5 {[%clk 0:01:08.8]} 24. Nd2 {[%clk 0:01:22.2]} 24... Kc7 {[%clk
0:01:02.7]} 25. Nxh5 {[%clk 0:01:20.2]} 25... Nxh5 {[%clk 0:01:00.5]} 26. Rxh5
{[%clk 0:01:20]} 26... Rxh5 {[%clk 0:00:41.2]} 27. Qxh5 {[%clk 0:01:20]} 27...
Qb2 {[%clk 0:00:41.7]} 28. Rd1 {[%clk 0:01:16.2]} 28... Qxc3 {[%clk 0:00:41.8]}
29. Nf3 {[%clk 0:00:59.1]} 29... Qc2 {[%clk 0:00:40.8]} 30. Rh1 {[%clk
0:00:51.5]} 30... Qf5 {[%clk 0:00:31.2]} 31. Rh4 {[%clk 0:00:44.4]} 31... c3
{[%clk 0:00:28.2]} 32. Ne1 {[%clk 0:00:33.2]} 32... Kb8 {[%clk 0:00:19.1]} 33.
g6 {[%clk 0:00:15.1]} 33... Qxh5 {[%clk 0:00:13.9]} 34. Rxh5 {[%clk 0:00:16]}
34... fxg6 {[%clk 0:00:14.5]} 35. Rh7 {[%clk 0:00:16]} 35... Nb6 {[%clk
0:00:11.4]} 36. a5 {[%clk 0:00:16.3]} 36... Nc4 {[%clk 0:00:07.2]} 37. Nc2
{[%clk 0:00:16.9]} 37... Nxa5 {[%clk 0:00:07.2]} 38. Re7 {[%clk 0:00:17.3]}
38... Rc6 {[%clk 0:00:07.1]} 39. Kf3 {[%clk 0:00:16.4]} 39... Nb3 {[%clk
0:00:05.9]} 40. Ke3 {[%clk 0:00:15.6]} 40... a5 {[%clk 0:00:06.2]} 41. Kd3
{[%clk 0:00:15.4]} 41... b5 {[%clk 0:00:05.6]} 42. f4 {[%clk 0:00:14.6]} 42...
b4 {[%clk 0:00:05.9]} 43. Rg7 {[%clk 0:00:15.1]} 43... Nc1+ {[%clk 0:00:05.9]}
44. Ke3 {[%clk 0:00:15]} 44... b3 {[%clk 0:00:06.5]} 45. Na3 {[%clk 0:00:15.5]}
45... c2 {[%clk 0:00:06.6]} 46. Kd2 {[%clk 0:00:15.7]} 46... Na2 {[%clk
0:00:06.8]} 47. Rg8+ {[%clk 0:00:13.1]} 47... Kb7 {[%clk 0:00:07]} 48. Rg7+
{[%clk 0:00:14]} 48... Ka6 {[%clk 0:00:07.6]} 49. Nxc2 {[%clk 0:00:13.3]} 49...
bxc2 {[%clk 0:00:07.7]} 50. Rxg6 {[%clk 0:00:13.8]} 50... c1=Q+ {[%clk
0:00:08.6]} 51. Ke2 {[%clk 0:00:14.2]} 51... Qc2+ {[%clk 0:00:05.9]} 52. Kf3
{[%clk 0:00:15.1]} 52... Qxg6 {[%clk 0:00:06]} 53. f5 {[%clk 0:00:16]} 53...
Qxf5+ {[%clk 0:00:06.3]} 54. Ke3 {[%clk 0:00:16.9]} 54... Rc3+ {[%clk
0:00:06.4]} 55. Kd2 {[%clk 0:00:17.8]} 55... Qc2+ {[%clk 0:00:05.9]} 56. Ke1
{[%clk 0:00:18.7]} 56... Rb3 {[%clk 0:00:06.5]} 57. Kf1 {[%clk 0:00:19]} 57...
Rb1# {[%clk 0:00:07.4]} 0-1